{"text_format":"1","workbook":"xlsx","n_sheets":1,"sheets":["Лист1"],"not_rendered":{"charts":0,"images":0,"macros":0,"external_links":0,"defined_names":0,"comments":0,"pivot_tables":0},"unopened":[],"bounds":{"document_bytes":16777216,"sheet_cells":100000,"rows_first":2000,"rows_last":500,"rows_between":2000,"halvings":0,"cell_chars":16384,"cell_head_chars":4096},"cells_cut":0,"cells_raw":0,"read":"whole","date_system":"1900"}

{"sheet":"Лист1","index":0,"n_rows":22,"n_cols":12,"rows_kept":22,"cut":false,"hidden":false,"merged":[[0,8,2,8],[0,9,2,9],[0,0,2,0],[0,1,2,1],[0,2,2,2],[0,3,2,3],[0,4,2,4],[0,5,2,5],[0,6,2,6]]}
["№ пп","Обоснование","Наименование работ и затрат","Ед. изм.","Кол-во","ТЗ Осн.раб.\nВсего","ТЗ Мех.\nВсего",null,"Ед. изм.","Кол-во"]
[]
[]
[26,"101-3890","Сетка сварная из арматурной проволоки диаметром: 4,0 мм, без покрытия, 50х50 мм","м2",4,"","",null,"м2",4,{"$f":"IFERROR(TRIM(MID(D4,FIND(\" \",D4),3)),D4)","v":"м2"},{"$f":"IFERROR(MID(D4,1,FIND(\" \",D4)-1)*E4,E4)","v":4}]
[27,"ГЭСН08-02-009-01","Кладка перегородок толщиной 120 мм из камней керамических или силикатных: армированных при высоте этажа до 4 м","100 м2 перегородок (за вычетом проемов)",2.14,318.33,6.81,null,"м2",214,{"$f":"IFERROR(TRIM(MID(D5,FIND(\" \",D5),3)),D5)","v":"м2"},{"$f":"IFERROR(MID(D5,1,FIND(\" \",D5)-1)*E5,E5)","v":214}]
[28,"404-0004-000001","Кирпич керамический одинарный; размером 250х120х65 мм; марка 75","1000 шт",5.5640000000000001,"","",null,"шт",5564,"шт",5564]
[29,"101-6031","Сетка сварная из арматурной проволоки диаметром: 3,0 мм, без покрытия, 50х50 мм","м2",66.319999999999993,"","",null,"м2",66.319999999999993,"м2",66.319999999999993]
[30,"ГЭСН06-01-015-07","Установка анкеров Ду10 АIII","1 т",0.19500000000000001,42.08,0.03,null,"т",0.19500000000000001,"т",0.19500000000000001]
[31,"101-2224-000015","Прокат для армирования ж/б конструкций круглый и периодического профиля горячекатаный и термомеханический, термически упрочненный класс А-III диам.10 мм","т",0.19500000000000001,"","",null,"т",0.19500000000000001,"т",0.19500000000000001]
[32,"ГЭСН15-04-006-02","Покрытие поверхностей грунтовкой глубокого проникновения: за 2 раза потолков","1 м3 кладки",4.0796999999999999,81.680000000000007,0.04,null,"м3",4.0796999999999999,"м3",4.0796999999999999]
[33,"ГЭСН15-04-005-08","Окраска поливинилацетатными водоэмульсионными составами высококачественная: по штукатурке потолков","100 м2 окрашиваемой поверхности",4.0796999999999999,364.85,0.12,null,"м2",407.97,"м2",407.96999999999997]
[34,"ГЭСН15-02-016-06","Штукатурка поверхностей внутри здания цементно-известковым или цементным раствором по камню и бетону: высококачественная потолков","100 м2 оштукатуриваемой поверхности",0.24490000000000001,34.94,1.58,null,"м2",24.49,"м2",24.490000000000002]
[35,"ГЭСН13-03-005-01","Шпатлевка поверхностей: силикатной шпатлевкой, толщина слоя 3 мм","100 м2 шпатлюемой поверхности",6.7607999999999997,363.87,20.49,null,"м2",676.08,"м2",676.07999999999993]
[36,"ГЭСН13-03-005-02","Шпатлевка поверхностей: на каждый последующий слой толщиной 1 мм добавлять к норме 13-03-005-01\n(5-3=2 ПЗ=2 (ОЗП=2; ЭМ=2 к расх.; ЗПМ=2; МАТ=2 к расх.; ТЗ=2; ТЗМ=2))","100 м2 шпатлюемой поверхности",6.7607999999999997,140.49,13.66,null,"м2",676.08,"м2",676.07999999999993]
[]
[null,null,null,"Возможно ли макросом сделать, чтобы "]
[null,null,null,"столбцы, выделенные черным"]
[null,null,null,"приобрели вид, как выделено красным"]
[]
[null,null,null,"Т.е нужно избавиться от лишнего текста после м2, м3, шт и тд"]
[null,null,null,"Цифру из столбца КОЛ-ВО умножить на число перед м2, м3, шт и тд"]
[null,null,null,"И потом их (цифры) удалить"]